lending/lending_fUSD_20240124
["ID","MTS","AMOUNT","RATE_DAILY","PERIOD"]
[312631517,1706122252047,-175.30194725,0.00035879,2]
[312631518,1706122252058,-209.0,0.00035906,2]
[312631519,1706122252068,-2424.86744595,0.00035973,8]
[312631520,1706122252084,-200.0,0.00035989,7]
[312631521,1706122252095,-10027.81418832,0.00035997,2]
[312631522,1706122252106,-150.0,0.00035998,2]
[312631523,1706122252116,-150.0,0.00035998,2]
[312631524,1706122252126,-150.0,0.00035998,2]
[312631525,1706122252136,-150.0,0.00035998,2]
[312631526,1706122252147,-1416063.17240172,0.00035999,7]
[312631527,1706122252157,-100000.0,0.00036,16]
[312631528,1706122252167,-1338.8216363,0.00036,2]
[312631529,1706122252178,-3898.60781039,0.00036,2]
[312631530,1706122252192,-298.08959021,0.00036,4]
[312631531,1706122252202,-153.87,0.00036038,2]
[312631532,1706122252213,-691.60291271,0.00036215,8]
[312631533,1706122252226,-4959.4983354,0.00036216,2]
[312631534,1706122252242,-989.01761585,0.00036297,8]
[312631535,1706122252253,-200.0,0.00036351,2]
[312631536,1706122252265,-566.33226344,0.00036422,7]
[312631537,1706122252277,-459.46397115,0.00036432,8]
[312631538,1706122252288,-569.31462604,0.00036481,8]
[312631539,1706122252301,-733.67624849,0.00036481,8]
[312631540,1706122252313,-1753.69598912,0.00036534,8]
[312631541,1706122252325,-218.75142124,0.00036545,8]
[312631542,1706122252335,-517.2955977,0.00036579,8]
[312631543,1706122252346,-179.94,0.00036613,15]
[312631544,1706122252357,-1000.0,0.00036614,10]
[312631545,1706122252368,-500.0,0.00036822,7]
[312631546,1706122252379,-153.87,0.00036881,2]
[312631547,1706122252390,-2424.86744595,0.00036985,10]
[312631548,1706122252401,-1377.09257782,0.00036999,2]
[312631549,1706122252412,-39616.56387777,0.00036999,2]
[312631550,1706122252423,-100000.0,0.00037,17]
[312631551,1706122252434,-750.0,0.00037,3]
[312631552,1706122252444,-205.0,0.00037067,13]
[312631553,1706122252456,-152.41515383,0.00037069,2]
[312631554,1706122252466,-426.37,0.00037116,2]
[312631555,1706122252478,-500.0,0.00037299,7]
[312631556,1706122252489,-1000.0,0.00037459,2]
[312631557,1706122252501,-157.93,0.000377,3]
[312631558,1706122252514,-157.93,0.000377,3]
[312631559,1706122252525,-152.41,0.000377,3]
[312631560,1706122252536,-152.41,0.000377,3]
[312631561,1706122252546,-152.41,0.000377,3]
[312631562,1706122252557,-152.41,0.000377,3]
[312631563,1706122252567,-153.87,0.00037724,2]
[312631564,1706122252577,-500.0,0.00037742,2]
[312631565,1706122252588,-200.0,0.00037742,2]
[312631566,1706122252598,-500.0,0.00037777,7]
[312631567,1706122252609,-4959.4983354,0.00037795,2]
[312631568,1706122252619,-1568.74,0.00037808,2]
[312631569,1706122252630,-154.72724428,0.00037878,4]
[312631570,1706122252640,-666400.048189,0.000379,3]
[312631571,1706122252650,-150.0,0.00037996,2]
[312631572,1706122252661,-150.0,0.00037996,2]
[312631573,1706122252671,-2424.86744595,0.00037997,11]
[312631574,1706122252681,-100000.0,0.00038,18]
[312631575,1706122252692,-2000.0,0.00038,6]
[312631576,1706122252703,-2000.0,0.00038,3]
[312631577,1706122252713,-2013.56,0.00038,2]
[312631578,1706122252723,-319.94,0.00038,2]
[312631579,1706122252734,-150.0,0.00038004,2]
[312631580,1706122252745,-366.86,0.000382,3]
[312631581,1706122252755,-366.86,0.000382,3]
[312631582,1706122252766,-366.86,0.000382,3]
[312631583,1706122252777,-366.86,0.000382,3]
[312631584,1706122252787,-366.86,0.000382,3]
[312631585,1706122252798,-366.86,0.000382,3]
[312631586,1706122252808,-366.86,0.000382,3]
[312631587,1706122252819,-366.86,0.000382,3]
[312631589,1706122252830,-366.86,0.000382,3]
[312631590,1706122252841,-366.86,0.000382,3]
[312631591,1706122252852,-366.86,0.000382,3]
[312631592,1706122252862,-366.86,0.000382,3]
[312631593,1706122252872,-366.86,0.000382,3]
[312631594,1706122252882,-366.86,0.000382,3]
[312631595,1706122252893,-366.86,0.000382,3]
[312631596,1706122252904,-366.86,0.000382,3]
[312631597,1706122252915,-366.86,0.000382,3]
[312631598,1706122252925,-366.86,0.000382,3]
[312631599,1706122252935,-366.86,0.000382,3]
[312631600,1706122252954,-366.86,0.000382,3]
[312631601,1706122252964,-500.0,0.00038254,7]
[312631602,1706122252974,-150.0,0.00038356,2]
[312631603,1706122252984,-153.87,0.00038567,2]
[312631604,1706122252994,-30307.86,0.000387,4]
[312631605,1706122253005,-500.0,0.00038732,7]
[312631606,1706122253015,-153.27,0.00038761,2]
[312631607,1706122253024,-150.0,0.00038761,2]
[312631608,1706122253034,-150.0,0.00038761,2]
[312631609,1706122253044,-3148.44,0.00038839,2]
[312631610,1706122253053,-347.593707,0.0003885,2]
[312631611,1706122253063,-152.41515383,0.00038861,2]
[312631612,1706122253072,-58955.04824894,0.0003888,2]
[312631613,1706122253082,-58955.04824887,0.0003888,2]
[312631614,1706122253093,-58955.04824887,0.0003888,2]
[312631615,1706122253103,-58955.04824887,0.0003888,2]
[312631616,1706122253112,-58955.04824887,0.0003888,2]
[312631617,1706122253122,-58955.04824887,0.0003888,2]
[312631618,1706122253132,-1000.0,0.000389,2]
[312631619,1706122253142,-190.49129517,0.000389,9]
[312631620,1706122253152,-209.0,0.00038906,2]
[312631621,1706122253162,-150.0,0.00038923,2]
[312631622,1706122253171,-688.45438986,0.00038957,4]
[312631623,1706122253181,-26599.77087892,0.0003897,2]
[312631624,1706122253191,-12473.8852619,0.00038973,2]
[312631625,1706122253202,-6874.9208463,0.00038973,2]
[312631626,1706122253211,-282.21761447,0.0003898,2]
[312631627,1706122253224,-150.0,0.00038999,2]
[312631628,1706122253235,-150.0,0.00038999,2]
[312631629,1706122253245,-150.0,0.00038999,2]
[312631630,1706122253256,-150.0,0.00038999,2]
[312631631,1706122253266,-150.0,0.00038999,2]
[312631632,1706122253275,-150.0,0.00038999,2]
[312631633,1706122253285,-100000.0,0.00039,19]
[312631634,1706122253295,-620.63088492,0.00039,4]
[312631635,1706122253307,-976.71698119,0.00039,4]
[312631636,1706122253317,-701.03904126,0.00039,10]
[312631637,1706122253327,-197.21553503,0.00039,4]
[312631638,1706122253336,-2042.60313175,0.00039,2]
[312631639,1706122253346,-2565391.97015308,0.00039,5]
[312631640,1706122253355,-151.0,0.00039,2]
[312631641,1706122253364,-800.0,0.00039,3]
[312631642,1706122253374,-2424.86744595,0.0003901,12]
[312631643,1706122253384,-2900.89677385,0.00039134,11]
[312631644,1706122253395,-2013.56,0.0003914,2]
[312631645,1706122253404,-150.0,0.00039147,2]
[312631646,1706122253413,-566.33226344,0.00039161,9]
[312631647,1706122253424,-500.0,0.00039209,7]
[312631648,1706122253433,-150.0,0.00039232,2]
[312631649,1706122253443,-150.0,0.00039251,2]
[312631650,1706122253453,-481.55,0.0003926,2]
[312631651,1706122253463,-150.0,0.00039329,2]
[312631653,1706122253474,-150.0,0.00039337,2]
[312631654,1706122253483,-150.0,0.00039345,2]
[312631655,1706122253492,-150.0,0.00039355,2]
[312631656,1706122253502,-150.0,0.00039359,2]
[312631657,1706122253512,-150.0,0.00039366,2]
[312631658,1706122253521,-4959.4983354,0.00039374,2]
[312631659,1706122253531,-426.37,0.0003938,2]
[312631660,1706122253541,-625.658942,0.0003938,3]
[312631661,1706122253551,-150.0,0.00039392,2]
[312631662,1706122253560,-500.0,0.000394,3]
[312631663,1706122253570,-150.0,0.00039408,2]
[312631664,1706122253579,-153.87,0.0003941,2]
[312631665,1706122253589,-150.0,0.00039419,2]
[312631666,1706122253598,-500.0,0.0003942,3]
[312631667,1706122253608,-150.0,0.00039432,2]
[312631668,1706122253617,-500.0,0.0003944,3]
[312631669,1706122253627,-500.0,0.0003946,3]
[312631670,1706122253637,-500.0,0.0003948,3]
[312631671,1706122253646,-150.0,0.00039498,2]
[312631672,1706122253656,-490.28334114,0.000395,4]
[312631673,1706122253665,-500.0,0.000395,3]
[312631674,1706122253675,-150.0,0.00039501,2]
[312631675,1706122253685,-150.0,0.00039513,2]
[312631676,1706122253694,-500.0,0.0003952,3]
[312631677,1706122253703,-150.0,0.00039523,2]
[312631678,1706122253713,-1000.0,0.00039526,10]
[312631679,1706122253723,-150.0,0.0003953,2]
[312631680,1706122253733,-150.0,0.00039536,2]
[312631681,1706122253742,-500.0,0.0003954,3]
[312631682,1706122253752,-150.0,0.00039555,2]
[312631683,1706122253763,-500.0,0.0003956,3]
[312631684,1706122253772,-150.0,0.00039576,2]
[312631685,1706122253782,-150.0,0.00039577,2]
[312631686,1706122253791,-500.0,0.0003958,3]
[312631687,1706122253802,-500.0,0.000396,3]
[312631688,1706122253812,-1000.0,0.00039612,10]
[312631689,1706122253822,-500.0,0.0003962,3]
[312631690,1706122253832,-500.0,0.0003964,3]
[312631691,1706122253842,-150.0,0.00039641,2]
[312631692,1706122253852,-150.0,0.00039649,2]
[312631693,1706122253862,-150.0,0.0003966,2]
[312631694,1706122253871,-500.0,0.0003966,3]
[312631695,1706122253880,-150.0,0.00039666,2]
[312631696,1706122253890,-150.0,0.00039678,2]
[312631697,1706122253899,-500.0,0.0003968,3]
[312631698,1706122253909,-150.0,0.00039686,2]
[312631699,1706122253918,-500.0,0.00039686,7]
[312631700,1706122253928,-150.0,0.00039687,2]
[312631701,1706122253951,-500.0,0.000397,3]
[312631702,1706122253961,-10102.6,0.000397,4]
[312631703,1706122253970,-150.0,0.00039713,2]
[312631704,1706122253980,-500.0,0.0003972,3]
[312631705,1706122253990,-150.0,0.00039729,2]
[312631706,1706122253999,-500.0,0.0003974,3]
[312631707,1706122254009,-500.0,0.0003976,3]
[312631708,1706122254019,-6856.45314807,0.00039764,2]
[312631709,1706122254029,-150.0,0.00039768,2]
[312631710,1706122254040,-150.0,0.00039771,2]
[312631711,1706122254052,-150.0,0.00039776,2]
[312631712,1706122254062,-500.0,0.0003978,3]
[312631713,1706122254073,-500.0,0.000398,3]
[312631714,1706122254084,-150.0,0.00039804,2]
[312631715,1706122254095,-150.0,0.00039807,2]
[312631716,1706122254106,-500.0,0.0003982,3]
[312631717,1706122254116,-150.0,0.00039829,2]
[312631718,1706122254127,-150.0,0.00039837,2]
[312631719,1706122254139,-150.0,0.00039838,2]
[312631720,1706122254149,-150.0,0.0003984,2]
[312631721,1706122254158,-500.0,0.0003984,3]
[312631722,1706122254167,-150.0,0.00039842,2]
[312631723,1706122254178,-500.0,0.0003986,3]
[312631724,1706122254189,-150.0,0.00039872,2]
[312631725,1706122254199,-500.0,0.0003988,3]
[312631726,1706122254208,-150.0,0.00039885,2]
[312631727,1706122254218,-150.0,0.00039886,2]
[312631728,1706122254422,-150.0,0.00039886,2]
[312631729,1706122254434,-350.00006257,0.000399,4]
[312631730,1706122254445,-200.0,0.000399,2]
[312631731,1706122254454,-500.0,0.000399,3]
[312631732,1706122254463,-230.01673269,0.000399,2]
[312631733,1706122254473,-150.0,0.00039905,2]
[312631734,1706122254483,-500.0,0.0003992,3]
[312631735,1706122254492,-150.0,0.00039923,2]
[312631736,1706122254502,-205.0,0.00039933,19]
[312631737,1706122254513,-500.0,0.0003994,3]
[312631738,1706122254523,-500.0,0.0003996,3]
[312631739,1706122254532,-500.0,0.0003998,3]
[312631740,1706122254541,-150.0,0.00039983,2]
[312631741,1706122254550,-150.0,0.00039989,2]
[312631742,1706122254560,-155.0,0.00039999,4]
[312631743,1706122254569,-500.0,0.00039999,31]
[312631744,1706122254578,-500.0,0.00039999,31]
[312631745,1706122254588,-598.91721562,0.00039999,31]
[312631746,1706122254598,-500.0,0.00039999,31]
[312631747,1706122254607,-589.19934593,0.00039999,31]
[312631748,1706122254617,-560.07045268,0.00039999,31]
[312631749,1706122254626,-500.0,0.00039999,31]
[312631750,1706122254635,-323.10690607,0.00039999,31]
[312631751,1706122254645,-150.0,0.00039999,2]
[312631752,1706122254654,-150.0,0.00039999,2]
[312631753,1706122254664,-100000.0,0.0004,20]
[312631754,1706122254674,-615.97425931,0.0004,10]
[312631755,1706122254685,-2680.34949408,0.0004,4]
[312631756,1706122254694,-569.51987199,0.0004,4]
[312631757,1706122254704,-155.0,0.0004,2]
[312631758,1706122254714,-6292.64215048,0.0004,4]
[312631759,1706122254724,-2271.20743593,0.0004,4]
[312631760,1706122254733,-54308.42779317,0.0004,4]
[312631761,1706122254742,-1084.9827743,0.0004,4]
[312631762,1706122254751,-22041.80226571,0.0004,4]
[312631763,1706122254762,-155.0,0.0004,4]
[312631764,1706122254771,-3200.0,0.0004,4]
[312631765,1706122254780,-2000.0,0.0004,4]
[312631766,1706122254789,-124870.44436015,0.0004,10]
[312631767,1706122254799,-33171.34674,0.0004,2]
[312631768,1706122254808,-224.87927615,0.0004,2]
[312631769,1706122254819,-155.43641126,0.0004,4]
[312631770,1706122254829,-500000.0,0.0004,4]
[312631771,1706122254838,-500.0,0.0004,10]
[312631772,1706122254848,-339.07066237,0.0004,12]
[312631773,1706122254858,-39616.56387777,0.0004,2]
[312631774,1706122254867,-150.0,0.0004,11]
[312631775,1706122254877,-1500.0,0.0004,32]
[312631776,1706122254886,-500.0,0.0004,3]
[312631777,1706122254896,-745.000718,0.0004,14]
[312631778,1706122254906,-150.0,0.00040007,2]
[312631779,1706122254916,-500.0,0.0004002,3]
[312631780,1706122254926,-2424.86744595,0.00040022,13]
[312631781,1706122254936,-175.30194725,0.00040034,2]
[312631782,1706122254945,-150.0,0.00040035,2]
[312631783,1706122254955,-150.0,0.00040036,2]
[312631784,1706122254964,-500.0,0.0004004,3]
[312631785,1706122254973,-150.0,0.00040048,2]
[312631786,1706122254983,-1500.0,0.00040054,2]
[312631787,1706122254992,-500.0,0.0004006,3]
[312631788,1706122255002,-500.0,0.0004008,3]
[312631789,1706122255012,-150.0,0.00040085,2]
[312631790,1706122255021,-150.0,0.00040086,2]
[312631791,1706122255031,-150.0,0.00040088,2]
[312631792,1706122255040,-1500.0,0.00040099,2]
[312631793,1706122255050,-300.0,0.000401,15]
[312631794,1706122255059,-202.0,0.000401,29]
[312631795,1706122255069,-3000.0,0.000401,27]
[312631796,1706122255078,-306.179395,0.000401,12]
[312631797,1706122255087,-150.0,0.000401,15]
[312631798,1706122255097,-500.0,0.000401,3]
[312631799,1706122255107,-150.0,0.00040103,2]
[312631800,1706122255116,-150.0,0.00040106,2]
[312631801,1706122255127,-185.01090773,0.00040126,2]
[312631802,1706122255137,-341030.62226047,0.00040134,2]
[312631803,1706122255146,-4790.17857553,0.00040134,2]
[312631804,1706122255155,-172.78434367,0.00040134,2]
[312631805,1706122255165,-999.19550992,0.00040134,2]
[312631806,1706122255176,-160.59613368,0.00040134,2]
[312631807,1706122255186,-8828.86903647,0.00040134,2]
[312631808,1706122255195,-1253.7661483,0.00040134,2]
[312631809,1706122255204,-4726.77655632,0.00040134,2]
[312631810,1706122255214,-6725.11912341,0.00040134,2]
[312631811,1706122255227,-21701.49818888,0.00040134,2]
[312631812,1706122255237,-12272.83327094,0.00040134,2]
[312631813,1706122255248,-1837.36551907,0.00040134,2]
[312631814,1706122255259,-643.0,0.00040134,2]
[312631815,1706122255271,-927.68631924,0.00040134,2]
[312631816,1706122255280,-8408.3080419,0.00040134,2]
[312631817,1706122255290,-29479.84696291,0.00040134,2]
[312631818,1706122255300,-547.94239806,0.00040134,2]
[312631819,1706122255313,-763.47108988,0.00040134,2]
[312631820,1706122255324,-232.52812474,0.00040134,2]
[312631821,1706122255335,-199.21474668,0.00040134,2]
[312631822,1706122255344,-52083.52248698,0.00040134,2]
[312631823,1706122255353,-8789.99355684,0.00040134,2]
[312631824,1706122255363,-550.0,0.00040134,2]
[312631825,1706122255372,-999.47825618,0.00040134,2]
[312631826,1706122255382,-10243.0630078,0.00040134,2]
[312631827,1706122255393,-73274.47344908,0.00040134,2]
[312631828,1706122255402,-538.63825266,0.00040134,2]
[312631829,1706122255410,-1166.67500174,0.00040134,3]
[312631830,1706122255419,-18645.14783736,0.00040134,3]
[312631831,1706122255428,-3773.87751094,0.00040134,3]
[312631832,1706122255438,-500.0,0.00040134,33]
[312631833,1706122255447,-500.0,0.00040134,33]
[312631834,1706122255457,-306.179395,0.00040134,30]
[312631835,1706122255466,-500.0,0.00040134,3]
[312631836,1706122255476,-500.0,0.00040134,3]
[312631837,1706122255485,-500.0,0.00040134,3]
[312631838,1706122255494,-500.0,0.00040134,3]
[312631839,1706122255503,-500.0,0.00040134,3]
[312631840,1706122255514,-500.0,0.00040134,3]
[312631841,1706122255525,-500.0,0.00040134,3]
[312631842,1706122255535,-500.0,0.00040134,3]
[312631843,1706122255546,-500.0,0.00040134,3]
[312631844,1706122255556,-500.0,0.00040134,3]
[312631845,1706122255567,-500.0,0.00040134,3]
[312631846,1706122255577,-500.0,0.00040134,3]
[312631847,1706122255587,-500.0,0.00040134,3]
[312631848,1706122255598,-500.0,0.00040134,3]
[312631849,1706122255608,-500.0,0.00040134,3]
[312631850,1706122255618,-500.0,0.00040134,3]
[312631851,1706122255629,-500.0,0.00040134,3]
[312631852,1706122255639,-500.0,0.00040134,3]
[312631853,1706122255655,-500.0,0.00040134,3]
[312631854,1706122255666,-500.0,0.00040134,3]
[312631855,1706122255678,-500.0,0.00040134,3]
[312631856,1706122255688,-500.0,0.00040134,3]
[312631857,1706122255700,-500.0,0.00040134,3]
[312631858,1706122255712,-500.0,0.00040134,3]
[312631859,1706122255723,-500.0,0.00040134,3]
[312631860,1706122255734,-500.0,0.00040134,3]
[312631861,1706122255745,-500.0,0.00040134,3]
[312631862,1706122255759,-500.0,0.00040134,3]
[312631863,1706122255769,-500.0,0.00040134,3]
[312631864,1706122255780,-500.0,0.00040134,3]
[312631865,1706122255790,-500.0,0.00040134,3]
[312631866,1706122255801,-500.0,0.00040134,3]
[312631867,1706122255812,-500.0,0.00040134,3]
[312631868,1706122255823,-500.0,0.00040134,3]
[312631869,1706122255834,-500.0,0.00040134,3]
[312631870,1706122255844,-500.0,0.00040134,3]
[312631871,1706122255855,-853.323205,0.00040134,3]
[312631872,1706122255867,-151.0,0.00040146,4]
[312631873,1706122255878,-8371.98213582,0.00040148,3]
[312631874,1706122255889,-1600.0,0.00040161,4]
[312631875,1706122255900,-2534.74170969,0.00040162,2]
[312631876,1706122255912,-860.79169073,0.00040163,4]
[312631877,1706122255922,-500.0,0.00040164,7]
[312631878,1706122255934,-3300.30698936,0.00040165,2]
[312631879,1706122255944,-240.93522142,0.00040166,10]
[312631880,1706122255955,-660.30862364,0.00040166,10]
[312631881,1706122255970,-285.08685974,0.00040166,10]
[312631882,1706122255981,-1578.32639021,0.00040166,10]
[312631883,1706122255992,-196.87627911,0.00040166,10]
[312631884,1706122256003,-465.56603793,0.00040166,10]
[312631885,1706122256017,-144752.2296566,0.00040169,2]
[312631886,1706122256028,-153.87,0.00040253,2]
[312631887,1706122256040,-2013.56,0.0004028,2]
[312631888,1706122256050,-158.30295571,0.000403,4]
[312631889,1706122256061,-179.94,0.00040349,15]
[312631890,1706122256077,-150.0,0.00040375,2]
[312631891,1706122256089,-777.0125,0.00040448,16]
[312631892,1706122256100,-4117.0,0.0004049,2]
[312631893,1706122256110,-1951.0,0.0004049,2]
[312631894,1706122256121,-150.0,0.00040499,3]
[312631895,1706122256132,-20185.93340265,0.000405,2]
[312631896,1706122256143,-58955.04824887,0.00040559,3]
[312631897,1706122256154,-202.0,0.000406,30]
[312631898,1706122256166,-500.0,0.00040641,7]
[312631899,1706122256180,-152.41515383,0.00040653,9]
[312631900,1706122256192,-20205.2,0.000407,6]
[312631901,1706122256204,-481.55,0.00040733,2]
[312631902,1706122256216,-777.0125,0.00040748,18]
[312631903,1706122256236,-1551.0,0.000408,2]
[312631904,1706122256257,-1000.0,0.00040888,10]
[312631905,1706122256276,-1000.0,0.00040888,10]
[312631906,1706122256287,-1000.0,0.00040888,10]
[312631907,1706122256298,-1000.0,0.00040888,10]
[312631908,1706122256309,-1000.0,0.00040888,10]
[312631909,1706122256320,-1000.0,0.00040888,10]
[312631910,1706122256330,-1000.0,0.00040888,10]
[312631911,1706122256342,-843.0,0.0004089,2]
[312631912,1706122256352,-207.0,0.0004091,2]
[312631913,1706122256362,-6092.02425308,0.0004093,2]
[312631914,1706122256372,-4959.4983354,0.00040953,5]
[312631915,1706122256385,-151.0,0.00040965,2]
[312631916,1706122256396,-200.0,0.00040987,30]
[312631917,1706122256407,-2293.0,0.0004099,2]
[312631918,1706122256418,-1087.0,0.0004099,2]
[312631919,1706122256429,-100000.0,0.00041,21]
[312631920,1706122256440,-3110.89371441,0.00041,4]
[312631921,1706122256451,-173458.5702987,0.00041,5]
[312631922,1706122256462,-800.0,0.00041,2]
[312631923,1706122256473,-62251.38156578,0.00041,4]
[312631924,1706122256691,-850.0,0.00041,3]
[312631925,1706122256703,-150.0,0.00041,12]
[312631926,1706122256715,-2424.86744595,0.00041034,15]
[312631927,1706122256726,-251.54824667,0.00041095,2]
[312631928,1706122256737,-237.75459179,0.00041095,7]
[312631929,1706122256749,-183.0,0.00041095,7]
[312631930,1706122256760,-267.41575031,0.00041095,7]
[312631931,1706122256771,-153.87,0.00041096,2]
[312631932,1706122256782,-745.000718,0.00041096,14]
[312631933,1706122256792,-203.975721,0.00041096,14]
[312631934,1706122256802,-196.0,0.00041096,14]
[312631935,1706122256814,-151.0,0.00041096,14]
[312631936,1706122256825,-151.0,0.00041096,14]
[312631937,1706122256835,-151.0,0.00041096,14]
[312631938,1706122256845,-151.0,0.00041096,14]
[312631939,1706122256855,-500.0,0.00041096,4]
[312631940,1706122256866,-500.0,0.00041096,4]
[312631941,1706122256876,-500.0,0.00041096,4]
[312631942,1706122256887,-500.0,0.00041096,4]
[312631943,1706122256897,-500.0,0.00041096,4]
[312631944,1706122256907,-500.0,0.00041096,4]
[312631945,1706122256918,-500.0,0.00041096,4]
[312631946,1706122256929,-500.0,0.00041096,4]
[312631947,1706122256939,-500.0,0.00041096,4]
[312631948,1706122256949,-500.0,0.00041096,4]
[312631949,1706122256959,-500.0,0.00041096,4]
[312631950,1706122256970,-500.0,0.00041096,4]
[312631951,1706122256982,-500.0,0.00041096,4]
[312631952,1706122256992,-500.0,0.00041096,4]
[312631953,1706122257003,-500.0,0.00041096,4]
[312631954,1706122257014,-151.0,0.00041096,14]
[312631955,1706122257024,-500.0,0.00041096,4]
[312631956,1706122257034,-151.0,0.00041096,14]
[312631957,1706122257044,-500.0,0.00041096,4]
[312631958,1706122257054,-151.0,0.00041096,14]
[312631959,1706122257064,-500.0,0.00041096,4]
[312631960,1706122257074,-500.0,0.00041096,4]
[312631961,1706122257084,-649.0,0.00041096,4]
[312631962,1706122257094,-151.0,0.00041096,14]
[312631963,1706122257105,-151.0,0.00041096,14]
[312631964,1706122257115,-151.0,0.00041096,14]
[312631965,1706122257125,-160.742677,0.00041096,14]
[312631966,1706122257134,-151.0,0.00041096,14]
[312631967,1706122257144,-151.0,0.00041096,14]
[312631968,1706122257154,-191.597046,0.00041096,14]
[312631969,1706122257165,-500.0,0.00041096,4]
[312631970,1706122257175,-151.0,0.00041096,14]
[312631971,1706122257185,-168.461342,0.00041096,14]
[312631972,1706122257195,-151.0,0.00041096,14]
[312631973,1706122257205,-151.0,0.00041096,14]
[312631974,1706122257215,-151.0,0.00041096,14]
[312631975,1706122257225,-151.0,0.00041096,14]
[312631976,1706122257235,-151.0,0.00041096,14]
[312631977,1706122257247,-203.3636,0.00041096,14]
[312631978,1706122257257,-151.0,0.00041096,14]
[312631979,1706122257269,-151.0,0.00041096,14]
[312631980,1706122257279,-151.433301,0.00041096,14]
[312631981,1706122257290,-151.0,0.00041096,14]
[312631982,1706122257300,-3072.21,0.00041096,2]
[312631983,1706122257312,-151.0,0.00041096,14]
[312631984,1706122257322,-151.0,0.00041096,14]
[312631985,1706122257334,-151.0,0.00041096,14]
[312631986,1706122257344,-151.0,0.00041096,14]
[312631987,1706122257354,-151.0,0.00041096,14]
[312631988,1706122257364,-512.0,0.00041096,4]
[312631989,1706122257373,-151.0,0.00041096,14]
[312631990,1706122257383,-151.0,0.00041096,7]
[312631991,1706122257393,-151.0,0.00041096,7]
[312631992,1706122257403,-151.0,0.00041096,7]
[312631993,1706122257414,-151.0,0.00041096,7]
[312631994,1706122257425,-151.0,0.00041096,7]
[312631995,1706122257434,-151.0,0.00041096,7]
[312631996,1706122257444,-176.293836,0.00041096,14]
[312631997,1706122257454,-332.57745,0.00041096,14]
[312631998,1706122257464,-332.57745,0.00041096,14]
[312631999,1706122257474,-332.57745,0.00041096,14]
[312632000,1706122257484,-332.57745,0.00041096,14]
[312632001,1706122257493,-332.57745,0.00041096,14]
[312632002,1706122257503,-332.57745,0.00041096,14]
[312632003,1706122257515,-153.748065,0.00041096,14]
[312632004,1706122257525,-153.748065,0.00041096,14]
[312632005,1706122257533,-153.748065,0.00041096,14]
[312632006,1706122257543,-153.748065,0.00041096,14]
[312632007,1706122257552,-153.748065,0.00041096,14]
[312632008,1706122257562,-153.748065,0.00041096,14]
[312632009,1706122257571,-211.164639,0.00041096,14]
[312632010,1706122257581,-151.0,0.00041096,14]
[312632011,1706122257590,-151.0,0.00041096,14]
[312632012,1706122257600,-151.0,0.00041096,14]
[312632013,1706122257609,-151.0,0.00041096,14]
[312632014,1706122257619,-151.0,0.00041096,14]
[312632015,1706122257633,-151.0,0.00041096,14]
[312632016,1706122257643,-151.0,0.00041096,14]
[312632017,1706122257653,-151.0,0.00041096,14]
[312632018,1706122257663,-151.0,0.00041096,14]